bitfinex/quotes_SOLUSD_20250402
["timestamp","ask_amount","ask_price","bid_price","bid_amount"]
[1743620462820,21.43765111,130.23,130.19,0.063]
[1743620463108,21.43765111,130.22,130.19,0.063]
[1743620463294,21.43765111,130.23,130.19,0.063]
[1743620463491,35.27145111,130.24,130.19,0.063]
[1743620463713,6.1555,130.24,130.19,0.063]
[1743620463918,6.76,130.25,130.19,0.063]
[1743620464090,21.72197425,130.24,130.19,0.063]
[1743620464290,21.43765111,130.23,130.19,0.063]
[1743620464492,21.43765111,130.22,130.19,0.063]
[1743620464694,7.6795,130.22,130.19,0.063]
[1743620465006,29.11715111,130.22,130.19,0.063]
[1743620465317,29.11655111,130.23,130.19,0.063]
[1743620466413,7.6789,130.23,130.19,0.063]
[1743620466600,29.11655111,130.23,130.19,0.063]
[1743620467719,1.5393,130.26,130.19,26.063]
[1743620468013,22.97695111,130.26,130.19,26.063]
[1743620468192,30.65395111,130.26,130.19,26.063]
[1743620468391,21.43765111,130.25,130.19,26.063]
[1743620468809,21.43765111,130.23,130.19,0.063]
[1743620469035,29.11655111,130.23,130.19,0.063]
[1743620469325,29.11605111,130.24,130.19,0.063]
[1743620469693,7.6784,130.24,130.19,0.063]
[1743620469899,29.11535111,130.25,130.19,0.063]
[1743620470100,21.43765111,130.25,130.19,0.063]
[1743620470506,30.65405111,130.26,130.19,0.063]
[1743620471303,1.5393,130.26,130.21,26.0]
[1743620472717,21.43765111,130.25,130.19,0.063]
[1743620472922,9.2163,130.26,130.19,0.063]
[1743620473500,1.5393,130.26,130.19,18.85481043]
[1743620475418,1.5393,130.26,130.2,7.6804]
[1743620475613,9.2162,130.26,130.2,7.6804]
[1743620477519,1.5393,130.26,130.2,7.6804]
[1743620480414,9.2163,130.26,130.2,7.6804]
[1743620480613,1.5393,130.26,130.2,7.6804]
[1743620480825,9.2162,130.26,130.2,7.6804]
[1743620481325,30.65385111,130.26,130.2,7.6804]
[1743620481507,22.97695111,130.26,130.19,19.2647]
[1743620481824,1.5393,130.26,130.2,18.79181043]
[1743620483027,9.2163,130.26,130.19,25.6427]
[1743620483232,30.65395111,130.26,130.19,25.6427]
[1743620483721,22.97695111,130.26,130.19,33.3237]
[1743620483923,1.5393,130.26,130.19,33.3237]
[1743620484122,1.5393,130.26,130.2,18.79181043]
[1743620485431,0.03,130.27,130.23,26.0]
[1743620485628,0.03,130.27,130.24,26.8734]
[1743620487036,0.03,130.27,130.26,44.79181043]
[1743620487729,0.03,130.27,130.26,52.32654886]
[1743620488036,0.03,130.27,130.26,52.46871043]
[1743620488627,0.03,130.27,130.26,52.75303357]
[1743620490418,1.5152,130.32,130.27,18.79181043]
[1743620490620,1.5152,130.32,130.28,6.76]
[1743620491131,0.03,130.35,130.32,26.0]
[1743620491927,0.03,130.35,130.33,7.6728]
[1743620495839,0.03,130.35,130.33,14.4328]
[1743620496517,30.0,130.34,130.33,14.4328]
[1743620500226,30.0,130.34,130.33,33.22461043]
[1743620500937,0.03,130.35,130.33,33.22461043]
[1743620501518,0.03,130.35,130.34,19.07613357]
[1743620501724,0.0001,130.35,130.34,19.07613357]
[1743620501942,0.0001,130.35,130.34,0.42648471]
[1743620502142,0.03,130.37,130.36,26.28432314]
[1743620502329,30.03,130.37,130.36,26.28432314]
[1743620502639,30.03,130.37,130.36,26.0]
[1743620503141,30.03,130.37,130.36,33.671]
[1743620503942,30.03,130.37,130.34,26.0]
[1743620505334,1.5273,130.36,130.33,7.6723]
[1743620505642,30.0,130.35,130.33,7.6723]
[1743620507439,1.5273,130.36,130.32,18.79181043]
[1743620507440,1.5273,130.36,130.32,7.6731]
[1743620508238,30.63605111,130.36,130.31,7.6738]
[1743620509030,21.43765111,130.34,130.28,293.92]
[1743620509347,7.6725,130.34,130.29,7.6749]
[1743620510045,1.6156,130.31,130.27,7.7391]
[1743620510547,1.6156,130.31,130.27,0.063]
[1743620510846,23.05325111,130.31,130.27,0.063]
[1743620511230,30.0,130.3,130.27,0.063]
[1743620511628,37.6746,130.3,130.27,0.063]
[1743620512326,59.11225111,130.3,130.27,0.063]
[1743620514729,30.0,130.3,130.27,0.063]
[1743620516131,37.6747,130.3,130.27,0.063]
[1743620516343,21.43765111,130.29,130.27,0.063]
[1743620516550,30.0,130.28,130.27,0.063]
[1743620517736,51.43765111,130.28,130.27,0.063]
[1743620517938,21.43765111,130.28,130.27,0.063]
[1743620518548,29.11335111,130.28,130.27,0.063]
[1743620519759,21.43765111,130.28,130.27,0.063]
[1743620520354,29.11335111,130.28,130.27,0.063]
[1743620520541,29.11295111,130.29,130.27,0.063]
[1743620521355,7.6753,130.29,130.27,0.063]
[1743620521540,21.43765111,130.28,130.27,0.063]
[1743620521747,21.72197425,130.28,130.27,0.063]
[1743620522557,29.39767425,130.28,130.27,0.063]
[1743620528236,30.94497425,130.28,130.27,0.063]
[1743620529844,23.23736127,130.28,130.27,0.063]
[1743620531963,7.6748,130.3,130.27,0.063]
[1743620532167,15.29703813,130.31,130.27,0.063]
[1743620532966,22.97113813,130.31,130.27,0.063]
[1743620533670,30.68078815,130.31,130.27,0.063]
[1743620536170,7.6751,130.29,130.27,0.063]
[1743620536373,29.11478815,130.29,130.27,0.063]
[1743620536576,21.43968815,130.28,130.27,0.063]
[1743620536764,0.28432314,130.28,130.27,0.063]
[1743620536953,21.72401129,130.28,130.27,0.063]
[1743620537455,40.51582172,130.28,130.27,0.063]
[1743620538260,48.19152172,130.28,130.27,0.063]
[1743620539378,26.0,130.28,130.27,0.063]
[1743620540657,55.39971129,130.28,130.27,0.063]
[1743620541675,74.19152172,130.28,130.27,0.063]
[1743620541855,0.28432314,130.27,130.19,7.7437]
[1743620542058,21.43968815,130.23,130.19,0.063]
[1743620542257,7.6793,130.22,130.19,0.063]
[1743620543269,29.11898815,130.22,130.19,0.063]
[1743620543468,21.43968815,130.21,130.19,0.063]
[1743620544273,7.6804,130.2,130.19,0.063]
[1743620544870,21.72401129,130.22,130.19,0.063]
[1743620545081,21.43968815,130.2,130.19,0.063]
[1743620546362,29.40441129,130.2,130.19,0.063]
[1743620546563,69.63590987,130.2,130.19,0.063]
[1743620546775,26.0,130.17,130.13,0.063]
[1743620546967,21.43968815,130.15,130.13,0.063]
[1743620548288,21.72401129,130.14,130.13,0.063]
[1743620549373,21.43968815,130.14,130.13,0.063]
[1743620549573,0.28432314,130.16,130.13,0.063]
[1743620549775,21.72401129,130.16,130.13,0.063]
[1743620549968,26.0,130.17,130.13,0.063]
[1743620550171,47.43968815,130.17,130.13,0.063]
[1743620551484,55.12188815,130.17,130.13,0.063]
[1743620552489,21.43968815,130.16,130.13,0.063]
[1743620552888,21.43968815,130.15,130.13,0.063]
[1743620553103,21.43968815,130.14,130.13,0.063]
[1743620553290,22.98908815,130.14,130.13,0.063]
[1743620553498,1.5494,130.14,130.13,0.063]
[1743620553987,21.43968815,130.15,130.13,0.063]
[1743620554187,29.40711129,130.16,130.13,0.063]
[1743620554487,29.12278815,130.16,130.13,0.063]
[1743620554986,26.0,130.17,130.13,0.063]
[1743620555189,82.1,130.2,130.13,0.063]
[1743620555190,111.22018815,130.2,130.13,0.063]
[1743620555390,21.43968815,130.19,130.13,0.063]
[1743620555592,21.43968815,130.18,130.13,0.063]
[1743620556098,21.43968815,130.19,130.13,0.063]
[1743620557874,29.12018815,130.2,130.13,0.063]
[1743620558075,7.6805,130.2,130.13,0.063]
[1743620558374,21.43968815,130.2,130.13,0.063]
[1743620558578,21.43968815,130.19,130.13,0.063]
[1743620558768,7.6816,130.18,130.13,0.063]
[1743620558973,29.12128815,130.18,130.13,0.063]
[1743620559592,7.6816,130.18,130.13,0.063]
[1743620559904,7.7112,130.19,130.13,0.063]
[1743620560201,29.15088815,130.19,130.13,0.063]
[1743620560698,21.46968815,130.19,130.13,0.063]
[1743620560901,0.03,130.19,130.13,0.063]
[1743620561402,21.46968815,130.19,130.13,0.063]
[1743620562699,29.15128815,130.19,130.13,0.063]
[1743620565503,0.31432314,130.19,130.13,0.063]
[1743620565802,21.43968815,130.17,130.13,0.063]
[1743620565991,21.43968815,130.18,130.13,0.063]
[1743620566898,29.12168815,130.18,130.13,0.063]
[1743620567701,21.43968815,130.17,130.13,0.063]
[1743620568300,21.43968815,130.16,130.13,0.063]
[1743620569504,29.12298815,130.16,130.13,0.063]
[1743620570823,29.12218815,130.17,130.13,0.063]
[1743620571318,0.31432314,130.19,130.13,0.063]
[1743620571319,21.43968815,130.18,130.13,0.063]
[1743620572412,29.12138815,130.18,130.13,0.063]
[1743620573304,7.6817,130.18,130.13,0.063]
[1743620573603,7.99552314,130.19,130.13,0.063]
[1743620573802,0.03,130.19,130.13,13.142]
[1743620574605,0.03,130.19,130.15,0.14216157]
[1743620574906,0.03,130.19,130.15,18.79181043]
[1743620576707,0.03,130.19,130.18,26.0]
[1743620576906,0.03,130.19,130.18,26.14216157]
[1743620577115,0.03,130.19,130.18,51.57181043]
[1743620577412,0.03,130.19,130.18,32.78]
[1743620578689,0.03,130.19,130.18,40.4616]
[1743620582636,0.03,130.19,130.18,33.6816]
[1743620587122,6.1542,130.27,130.19,0.14216157]
[1743620587319,1.5477,130.28,130.22,26.0]
[1743620587508,1.5477,130.28,130.22,32.76]
[1743620587703,36.92639883,130.31,130.23,26.8755]
[1743620588214,21.43899883,130.3,130.23,26.8755]
[1743620588519,21.43899883,130.3,130.23,7.6787]
[1743620588720,21.43899883,130.28,130.22,40.439]
[1743620589322,21.43899883,130.28,130.22,33.679]
[1743620589725,29.11409883,130.29,130.22,33.679]
[1743620591300,7.6751,130.29,130.22,33.679]
[1743620591504,29.39792197,130.3,130.22,33.679]
[1743620591721,7.95892314,130.3,130.22,33.679]
[1743620592227,29.39792197,130.3,130.22,33.679]
[1743620592813,29.39792197,130.3,130.22,52.8772]
[1743620594405,0.03,130.29,130.22,52.8772]
[1743620594627,0.03,130.29,130.24,7.6781]
[1743620594808,0.03,130.29,130.25,6.76]
[1743620595312,0.03,130.29,130.28,26.0]
[1743620596621,0.03,130.29,130.28,33.6757]
[1743620601931,0.03,130.29,130.26,7.6764]
[1743620602131,0.03,130.29,130.25,7.6773]
[1743620605137,0.03,130.29,130.24,7.6781]
[1743620606637,21.43899883,130.28,130.23,7.6784]
[1743620607017,21.46899883,130.29,130.23,7.6784]
[1743620607736,7.6757,130.28,130.23,7.6784]
[1743620607932,21.40184065,130.28,130.2,25.32001043]
[1743620608123,13.72614065,130.26,130.2,7.6804]
[1743620608323,1.617,130.24,130.2,7.6804]
[1743620608527,1.617,130.24,130.19,7.7437]
[1743620608724,1.617,130.24,130.2,19.68]
[1743620608920,1.617,130.24,130.19,7.7437]
[1743620610128,1.5154,130.27,130.2,18.79181043]
[1743620610923,1.5154,130.27,130.2,18.64964886]
[1743620611523,1.5154,130.27,130.21,7.6799]
[1743620611935,1.5154,130.27,130.21,26.8796]
[1743620613156,9.1918,130.27,130.21,26.8796]
[1743620613453,30.63921694,130.27,130.21,7.6799]
[1743620614936,9.1918,130.27,130.21,7.6799]
[1743620615150,30.63921694,130.27,130.21,7.6799]
[1743620615448,1.5154,130.27,130.21,7.6799]
[1743620615831,30.63911694,130.27,130.21,7.6799]
[1743620616433,22.96281694,130.27,130.21,7.6799]
[1743620616852,30.63911694,130.27,130.21,7.6799]
[1743620618132,9.1917,130.27,130.21,7.6799]
[1743620618565,30.63911694,130.27,130.21,7.6799]
[1743620619260,30.66911694,130.27,130.21,7.6799]
[1743620620972,21.44741694,130.25,130.2,7.6801]
[1743620622235,29.12501694,130.25,130.19,7.744]
[1743620622453,7.6776,130.25,130.19,7.744]
[1743620624748,7.6776,130.25,130.19,0.063]
[1743620624945,29.12501694,130.25,130.19,0.063]
[1743620625148,7.6776,130.25,130.19,0.063]
[1743620625341,29.12501694,130.25,130.19,0.063]
[1743620629041,21.44741694,130.24,130.19,0.063]
[1743620629242,29.12501694,130.25,130.19,0.063]
[1743620630835,29.15501694,130.25,130.19,0.063]
[1743620631845,13.76410743,130.25,130.19,0.063]
[1743620632845,21.41220743,130.24,130.19,0.063]
[1743620635161,0.03,130.25,130.19,18.85481043]
[1743620636364,0.03,130.25,130.22,26.0]
[1743620636956,0.03,130.25,130.23,6.76]
[1743620637572,0.03,130.25,130.24,7.6781]
[1743620639551,0.03,130.25,130.23,6.76]
[1743620639754,13.76410743,130.25,130.2,26.0]
[1743620639958,13.76410743,130.25,130.19,6.823]
[1743620640471,13.76410743,130.25,130.2,26.0]
[1743620640768,21.44210743,130.25,130.2,33.6804]
[1743620641466,0.03,130.25,130.2,52.8816]
[1743620641766,0.03,130.25,130.21,18.79181043]
[1743620642451,0.03,130.25,130.22,0.28432314]
[1743620642765,0.0001,130.27,130.26,52.46871043]
[1743620643168,0.0001,130.27,130.26,52.32654886]
[1743620643359,0.0001,130.27,130.26,52.46871043]
[1743620644546,0.0001,130.27,130.26,52.75303357]
[1743620648053,0.03,130.29,130.27,0.28432314]
[1743620648368,0.03,130.29,130.28,25.55181043]
[1743620648781,0.03,130.29,130.28,25.40964886]
[1743620649288,0.03,130.29,130.28,33.22751043]
[1743620658979,0.03,130.29,130.28,14.4357]
[1743620659180,0.03,130.29,130.28,7.6757]
[1743620659568,0.03,130.29,130.27,7.676]
[1743620663479,0.03,130.29,130.26,26.8692]
[1743620666188,0.03,130.29,130.26,7.6769]
[1743620666390,0.03,130.29,130.25,14.5004]
[1743620668297,0.03,130.29,130.25,7.7404]
[1743620670088,0.03,130.29,130.25,0.063]
[1743620674185,13.75209041,130.29,130.25,0.063]
[1743620674367,21.64889041,130.28,130.25,0.063]
[1743620676783,29.32479041,130.28,130.25,0.063]
[1743620677989,15.6027,130.28,130.25,0.063]
[1743620679298,1.5317,130.28,130.25,0.063]
[1743620679887,22.92959041,130.28,130.25,0.063]
[1743620680068,13.72209041,130.27,130.25,0.063]
[1743620681184,22.92959041,130.28,130.25,0.063]
[1743620681893,13.72209041,130.26,130.25,0.063]
[1743620682594,14.00641355,130.26,130.25,0.063]
[1743620683798,21.68331355,130.26,130.25,0.063]
[1743620686304,22.91709041,130.26,130.19,0.063]
[1743620686602,13.72209041,130.22,130.19,0.063]
[1743620687081,13.72209041,130.23,130.19,0.063]
[1743620691705,14.72212314,130.25,130.19,0.063]
[1743620691912,20.76641355,130.25,130.19,0.063]
[1743620692114,14.00641355,130.25,130.19,0.063]
[1743620692298,21.71401355,130.25,130.19,0.063]
[1743620693089,13.75209041,130.25,130.19,0.063]
[1743620695210,21.42959041,130.25,130.19,0.063]
[1743620699016,13.75209041,130.25,130.19,0.063]
[1743620700223,0.03,130.25,130.19,0.063]
[1743620700414,13.75209041,130.25,130.19,0.063]
[1743620700592,0.03,130.25,130.19,0.063]
[1743620701018,0.03,130.25,130.22,0.14216157]
[1743620701210,0.03,130.29,130.24,25.29541043]
[1743620701520,0.03,130.29,130.28,26.0]
[1743620702202,0.03,130.29,130.28,44.79181043]
[1743620702799,0.03,130.29,130.25,25.9537]
[1743620703237,0.03,130.29,130.26,7.6769]
[1743620703510,0.03,130.29,130.25,14.4373]
[1743620706608,0.03,130.29,130.26,19.67]
[1743620706925,0.03,130.29,130.27,18.79181043]
[1743620708327,0.03,130.29,130.28,7.81786157]
[1743620710009,0.03,130.33,130.31,26.0]
[1743620710221,0.03,130.33,130.31,32.76]
[1743620714323,0.03,130.33,130.31,40.4337]
[1743620715128,0.03,130.33,130.31,32.76]
[1743620715514,0.03,130.33,130.31,40.4339]
[1743620716039,0.03,130.35,130.34,45.07613357]
[1743620716343,0.03,130.37,130.35,0.28432314]
[1743620716539,0.03,130.37,130.36,25.55181043]
[1743620717411,0.03,130.37,130.36,6.76]
[1743620718837,0.03,130.37,130.36,14.431]
[1743620719741,0.03,130.37,130.36,6.76]
[1743620721745,0.03,130.37,130.36,14.431]
[1743620722052,0.03,130.37,130.36,6.76]
[1743620722742,0.03,130.37,130.32,14.4334]
[1743620723039,1.5144,130.36,130.32,6.76]
[1743620723234,21.43447592,130.35,130.3,287.16]
[1743620723424,21.43447592,130.35,130.29,6.76]
[1743620724026,7.6716,130.35,130.29,6.76]
[1743620724828,9.1855,130.36,130.29,6.76]
[1743620725031,27.5144,130.36,130.29,6.76]
[1743620725943,35.1856,130.36,130.3,7.6745]
[1743620727921,1.5144,130.36,130.3,7.6745]
[1743620728325,1.5144,130.36,130.3,26.8609]
[1743620728627,9.1855,130.36,130.3,26.8609]
[1743620728939,1.5144,130.36,130.31,18.79181043]
[1743620729148,9.1855,130.36,130.31,18.79181043]
[1743620729953,9.1855,130.36,130.31,26.46521043]
[1743620730472,9.1855,130.36,130.29,6.76]
[1743620730627,9.1855,130.36,130.29,14.4349]
[1743620730958,0.03,130.37,130.29,14.4349]
[1743620730959,0.03,130.37,130.33,26.0]
[1743620731135,0.03,130.37,130.34,32.76]
[1743620731828,0.03,130.37,130.34,6.76]
[1743620732033,29.13497592,130.37,130.31,6.76]
[1743620732234,21.46447592,130.37,130.31,14.4338]
[1743620732439,21.43447592,130.35,130.28,18.85481043]
[1743620732633,21.43447592,130.35,130.28,26.53021043]
[1743620733134,21.43447592,130.35,130.28,0.063]
[1743620733429,21.43447592,130.33,130.28,0.063]
[1743620734042,7.6722,130.34,130.28,0.063]
[1743620734228,29.10667592,130.34,130.28,0.063]
[1743620734834,21.43447592,130.32,130.28,0.063]
[1743620735034,26.8528,130.34,130.28,0.063]
[1743620735035,23.03177592,130.31,130.28,0.063]
[1743620736233,21.43447592,130.29,130.28,0.063]
[1743620737354,6.0224,130.3,130.28,0.063]
[1743620737860,9.2715,130.31,130.28,0.063]
[1743620738178,1.5973,130.31,130.28,0.063]
[1743620738560,9.2714,130.31,130.28,0.063]
[1743620738762,1.5973,130.31,130.28,0.063]
[1743620739576,9.2714,130.31,130.28,0.063]
[1743620739776,30.70587592,130.31,130.28,0.063]
[1743620741482,23.03177592,130.31,130.28,0.063]
[1743620741658,1.5973,130.31,130.28,0.063]
[1743620751376,7.673,130.33,130.28,0.063]
[1743620752715,30.72807592,130.34,130.28,0.063]
[1743620756596,9.2936,130.34,130.28,0.063]
[1743620756789,1.6211,130.34,130.28,0.063]
[1743620756988,1.6211,130.34,130.28,18.71264886]
[1743620758806,9.2933,130.34,130.28,18.71264886]
[1743620759121,9.2933,130.34,130.29,7.6751]
[1743620760735,1.6211,130.34,130.29,7.6751]
[1743620760916,0.03,130.35,130.33,26.0]
[1743620761227,0.03,130.35,130.34,26.0]
[1743620762305,0.03,130.35,130.34,44.64964886]
[1743620762621,0.03,130.35,130.34,26.0]
[1743620762826,0.03,130.35,130.31,13.4112]
[1743620763290,0.03,130.35,130.31,6.76]
[1743620763793,0.03,130.35,130.32,7.6734]
[1743620764922,21.46447592,130.35,130.29,7.6751]
[1743620765997,7.6722,130.34,130.28,7.7387]
[1743620766516,7.7018,130.35,130.28,7.7387]
[1743620768913,21.43447592,130.34,130.28,7.7387]
[1743620769132,21.43447592,130.33,130.28,0.063]
[1743620770131,7.6734,130.32,130.28,0.063]
[1743620770313,1.602,130.31,130.28,0.063]
[1743620771335,9.2764,130.31,130.28,0.063]
[1743620771545,1.91632314,130.35,130.29,26.0]
[1743620771825,30.73837592,130.35,130.29,26.0]
[1743620772026,1.632,130.35,130.29,26.0]
[1743620772230,9.3038,130.35,130.29,26.0]
[1743620772442,30.73827592,130.35,130.29,26.0]
[1743620772615,30.73827592,130.35,130.28,0.063]
[1743620772824,21.43447592,130.34,130.28,0.063]
[1743620773235,30.73827592,130.35,130.28,0.063]
[1743620773547,30.73827592,130.35,130.28,7.7387]
[1743620773548,9.3038,130.35,130.28,7.7387]
[1743620773736,30.73827592,130.35,130.28,7.7387]
[1743620773910,21.43447592,130.34,130.28,0.063]
[1743620774615,31.02259906,130.35,130.28,0.063]
[1743620774827,30.73827592,130.35,130.28,0.063]
[1743620777227,21.43447592,130.34,130.28,0.063]
[1743620777639,21.43447592,130.33,130.28,0.063]
[1743620778359,7.6734,130.32,130.28,0.063]
[1743620780843,29.10787592,130.32,130.28,0.063]
[1743620781213,48.29137592,130.32,130.28,0.063]
[1743620781739,21.43447592,130.31,130.28,0.063]
[1743620782662,7.6751,130.29,130.28,0.063]
[1743620782831,29.10957592,130.29,130.28,0.063]
[1743620783174,7.6751,130.29,130.28,0.063]
[1743620783371,29.10957592,130.29,130.28,0.063]
[1743620783535,7.6751,130.29,130.28,0.063]
[1743620785470,9.1827,130.3,130.28,0.063]
[1743620786172,30.61717592,130.3,130.28,0.063]
[1743620787878,29.10957592,130.29,130.28,0.063]
[1743620788479,7.6751,130.29,130.28,0.063]
[1743620788977,1.5079,130.3,130.28,0.063]
[1743620789146,7.6736,130.32,130.28,0.063]
[1743620790158,29.10807592,130.32,130.28,0.063]
[1743620791170,21.43447592,130.31,130.28,0.063]
[1743620792377,48.29157592,130.32,130.28,0.063]
[1743620792579,9.2678,130.33,130.28,0.063]
[1743620792960,30.70227592,130.33,130.28,0.063]
[1743620793261,7.674,130.31,130.28,0.063]
[1743620793469,29.10847592,130.31,130.28,0.063]
[1743620793866,23.31359906,130.33,130.28,0.063]
[1743620794061,1.87912314,130.33,130.28,0.063]
[1743620794761,9.55222314,130.33,130.28,0.063]
[1743620795175,30.98669906,130.33,130.28,0.063]
[1743620796179,9.55222314,130.33,130.28,0.063]
[1743620796383,9.2679,130.33,130.28,0.063]
[1743620797351,1.5948,130.33,130.28,7.7387]
[1743620797566,0.03,130.35,130.28,7.7387]
[1743620797763,0.03,130.35,130.31,26.0]
[1743620797954,0.03,130.35,130.32,26.0]
[1743620799360,0.03,130.35,130.33,7.6728]
[1743620804975,0.03,130.35,130.32,33.6732]
[1743620806289,0.03,130.35,130.32,52.8567]
[1743620808086,0.03,130.35,130.32,33.6732]
[1743620808281,0.03,130.35,130.32,40.4332]
[1743620810673,0.03,130.35,130.32,59.6167]
[1743620824201,0.03,130.35,130.32,40.4332]
[1743620824591,0.03,130.35,130.32,33.6732]
[1743620824782,0.03,130.35,130.32,26.0]
[1743620824977,0.03,130.35,130.31,0.063]
[1743620832911,7.7016,130.35,130.31,0.063]
[1743620833213,40.58261696,130.35,130.31,0.063]
[1743620833414,13.70191696,130.34,130.31,0.063]
[1743620833916,21.40351696,130.35,130.31,0.063]
[1743620834501,7.7016,130.35,130.31,0.063]
[1743620834812,13.70191696,130.34,130.31,0.063]
[1743620835213,13.73191696,130.35,130.31,0.063]
[1743620836519,7.702,130.35,130.31,0.063]
[1743620838313,0.03,130.35,130.31,0.063]
[1743620838722,0.03,130.35,130.32,32.76]
[1743620840615,0.03,130.35,130.33,7.6728]
[1743620841920,0.03,130.35,130.34,19.07613357]
[1743620843902,0.03,130.35,130.34,26.74833357]
[1743620844305,0.03,130.35,130.34,26.46401043]
[1743620844497,0.03,130.35,130.34,26.74833357]
[1743620845228,0.03,130.35,130.34,35.85833357]
[1743620846231,0.03,130.35,130.34,9.11]
[1743620846413,0.03,130.35,130.33,7.6725]
[1743620847821,0.03,130.35,130.34,19.07613357]
[1743620848320,0.03,130.35,130.34,26.74833357]
[1743620849326,0.03,130.35,130.34,26.46401043]
[1743620849515,0.03,130.35,130.34,26.74833357]
[1743620849906,0.03,130.37,130.34,32.77933357]
[1743620850108,0.03,130.43,130.42,7.6675]
[1743620850321,0.03,130.43,130.42,14.4275]
[1743620850722,0.03,130.43,130.42,33.50363357]
[1743620850920,1.2805142,130.47,130.42,52.67243357]
[1743620851220,0.03,130.49,130.43,19.07613357]
[1743620852225,0.03,130.49,130.44,7.6663]
[1743620853024,21.429195,130.49,130.41,19.07613357]
[1743620853328,27.547595,130.48,130.42,6.76]
[1743620853930,1.6181,130.47,130.42,6.76]
[1743620854632,9.2829,130.47,130.42,6.76]
[1743620855707,30.682095,130.47,130.42,6.76]
[1743620855907,21.399195,130.46,130.4,287.1]
[1743620856130,21.399195,130.46,130.41,9.11]
[1743620856427,21.399195,130.46,130.4,287.1]
[1743620856627,7.6657,130.45,130.4,294.7685]
[1743620856928,7.6654,130.46,130.4,294.7685]
[1743620857230,7.6654,130.46,130.4,287.1]
[1743620858130,21.399195,130.45,130.4,287.1]
[1743620858717,7.6663,130.44,130.4,287.1]
[1743620858920,7.6651,130.46,130.4,287.1]
[1743620859736,7.6651,130.46,130.4,294.7684]
[1743620859915,7.1651,130.46,130.4,287.1]
[1743620860631,28.564295,130.46,130.4,287.1]
[1743620860822,21.399195,130.45,130.4,287.1]
[1743620861134,7.1651,130.46,130.4,287.1]
[1743620861135,21.399195,130.44,130.4,287.1]
[1743620862120,21.399195,130.43,130.36,7.6708]
[1743620862325,1.6013,130.42,130.36,14.4308]
[1743620862837,7.6681,130.41,130.36,14.4308]
[1743620863023,7.6681,130.41,130.36,7.6708]
[1743620863532,29.067295,130.41,130.34,0.063]
[1743620863730,21.399195,130.39,130.35,9.11]
[1743620864330,21.399195,130.4,130.35,9.11]
[1743620865014,7.6692,130.39,130.35,9.11]
[1743620865214,7.6692,130.39,130.34,7.7351]
[1743620865638,7.6692,130.39,130.34,0.063]
[1743620867337,48.237595,130.41,130.34,0.063]
[1743620868727,7.6692,130.39,130.34,0.063]
[1743620869842,48.237595,130.41,130.34,0.063]
[1743620870526,21.68351814,130.4,130.34,0.063]
[1743620870929,29.068395,130.39,130.34,0.063]
[1743620871128,21.399195,130.38,130.34,0.063]
[1743620871428,21.399195,130.37,130.34,0.063]
[1743620871628,22.996895,130.37,130.34,0.063]
[1743620872436,1.5977,130.37,130.34,0.063]
[1743620872946,1.5194,130.45,130.37,26.0]